bitfinex/quotes_SOLUSD_20240708
["timestamp","ask_amount","ask_price","bid_price","bid_amount"]
[1720405392293,100.0,130.71,130.64,40.42]
[1720405392976,0.17,130.74,130.64,40.42]
[1720405393181,100.0,130.74,130.64,40.42]
[1720405393383,16.4063,130.77,130.68,40.42]
[1720405393384,100.0,130.76,130.68,40.42]
[1720405393802,100.8411096,130.78,130.68,40.42]
[1720405394024,0.8411096,130.78,130.72,40.42]
[1720405394229,0.8411096,130.78,130.73,20.0]
[1720405394603,0.8411096,130.78,130.74,49.24]
[1720405396132,0.8411096,130.78,130.75,20.0]
[1720405396312,0.8411096,130.91,130.76,74.0588]
[1720405396519,0.8411096,130.91,130.83,49.24]
[1720405396709,0.8411096,130.91,130.87,49.24]
[1720405396903,0.8411096,130.91,130.88,20.0]
[1720405397136,0.8411096,130.91,130.87,49.24]
[1720405397309,0.8411096,130.91,130.86,1.5388]
[1720405397653,0.8411096,130.91,130.79,49.24]
[1720405397829,100.0,130.88,130.8,20.0]
[1720405398629,100.0,130.88,130.79,49.24]
[1720405398929,100.0,130.85,130.79,49.24]
[1720405399624,100.0,130.85,130.75,49.24]
[1720405399810,100.0,130.83,130.75,49.24]
[1720405400006,100.0,130.86,130.73,6.6402]
[1720405400211,100.0,130.86,130.74,49.24]
[1720405400427,0.17,130.85,130.74,49.24]
[1720405400808,100.0,130.83,130.74,49.24]
[1720405401004,0.17,130.82,130.69,60.8064]
[1720405401210,100.0,130.81,130.69,60.8064]
[1720405401736,100.0,130.79,130.69,49.24]
[1720405402040,100.0,130.89,130.77,49.24]
[1720405402211,0.8411096,130.91,130.81,49.24]
[1720405402633,0.8411096,130.91,130.85,49.24]
[1720405403322,0.8411096,130.91,130.86,20.0]
[1720405404728,100.8411096,130.91,130.75,18.1047]
[1720405404928,0.8411096,130.91,130.79,49.24]
[1720405405436,0.8411096,130.91,130.83,49.24]
[1720405405812,0.8411096,130.91,130.87,49.24]
[1720405406224,100.0,130.99,130.88,43.11]
[1720405406445,100.0,130.99,130.88,20.0]
[1720405406617,0.04540539,131.02,130.88,20.0]
[1720405406821,100.0,130.98,130.88,20.0]
[1720405408530,100.0,131.0,130.88,20.0]
[1720405408732,100.0,130.98,130.88,20.0]
[1720405408948,15.04540539,131.02,130.87,49.24]
[1720405409238,15.04540539,131.02,130.85,18.1047]
[1720405409445,100.0,130.97,130.85,6.5383]
[1720405409827,100.0,130.93,130.83,49.24]
[1720405410032,100.17,130.92,130.83,49.24]
[1720405410238,100.0,130.89,130.83,49.24]
[1720405410551,100.0,130.9,130.8,55.6745]
[1720405411120,121.4184,130.95,130.84,49.24]
[1720405411751,121.4184,130.95,130.85,20.0]
[1720405412042,100.0,130.95,130.85,43.11]
[1720405412243,100.0,130.96,130.89,49.24]
[1720405412565,100.0,130.96,130.83,49.24]
[1720405412848,100.0,130.97,130.83,49.24]
[1720405413344,100.0,130.97,130.84,23.11]
[1720405413527,100.0,130.97,130.88,49.24]
[1720405413738,100.0,130.99,130.89,6.3705]
[1720405413953,100.0,131.01,130.93,49.24]
[1720405414133,0.04540539,131.02,130.94,20.0]
[1720405414345,100.04540539,131.02,130.94,20.0]
[1720405414650,100.04540539,131.02,130.93,49.24]
[1720405414843,100.04540539,131.02,130.9,49.24]
[1720405415044,100.04540539,131.02,130.91,20.0]
[1720405415349,0.04540539,131.02,130.96,49.24]
[1720405416120,100.04540539,131.02,130.91,20.0]
[1720405416322,0.04540539,131.02,130.91,43.11]
[1720405416530,100.04540539,131.02,130.91,20.0]
[1720405416945,100.04540539,131.02,130.9,49.24]
[1720405418331,100.04540539,131.02,130.91,20.0]
[1720405418650,100.0,130.98,130.9,49.24]
[1720405419126,0.04540539,131.02,130.9,49.24]
[1720405419331,0.04540539,131.02,130.94,49.24]
[1720405419554,0.04540539,131.02,130.94,72.35]
[1720405419847,0.04540539,131.02,130.94,49.24]
[1720405420728,0.04540539,131.02,130.95,20.0]
[1720405422457,0.04540539,131.02,130.94,49.24]
[1720405424552,0.04540539,131.02,130.94,72.35]
[1720405424947,0.04540539,131.02,130.95,20.0]
[1720405425366,0.04540539,131.02,130.94,49.24]
[1720405425942,0.04540539,131.02,131.0,49.24]
[1720405426162,0.8411096,131.04,131.0,49.24]
[1720405428564,22.1265,131.14,131.0,78.998]
[1720405428565,100.0,131.13,131.0,78.998]
[1720405428737,100.0,131.13,131.06,49.24]
[1720405429058,22.1265,131.14,131.06,49.24]
[1720405429252,22.1265,131.14,131.07,20.0]
[1720405429572,0.8411096,131.17,131.07,20.0]
[1720405429573,100.8411096,131.17,131.07,20.0]
[1720405430063,100.0,131.15,131.07,20.0]
[1720405430260,0.7792504,131.17,131.07,20.0]
[1720405430261,100.7792504,131.17,131.07,20.0]
[1720405430935,100.0,131.15,131.07,20.0]
[1720405431348,100.0,131.16,131.07,20.0]
[1720405431943,0.7792504,131.17,131.07,20.0]
[1720405432442,0.7792504,131.17,131.1,49.24]
[1720405433275,0.7792504,131.17,131.14,49.24]
[1720405433950,122.0035,131.26,131.14,49.24]
[1720405434142,122.0035,131.26,131.15,20.0]
[1720405435363,100.0,131.24,131.15,20.0]
[1720405436165,122.0035,131.26,131.16,1.52315478]
[1720405436755,0.17,131.25,131.16,1.52315478]
[1720405437356,122.0035,131.26,131.16,1.52315478]
[1720405437946,122.0035,131.26,131.15,20.0]
[1720405438653,22.0035,131.26,131.15,20.0]
[1720405438971,100.0,131.25,131.14,49.24]
[1720405439201,22.0035,131.26,131.1,6.3021]
[1720405439475,100.0,131.22,131.11,49.24]
[1720405439664,100.0,131.2,131.11,49.24]
[1720405439972,0.17,131.19,131.11,49.24]
[1720405440755,0.17,131.19,131.06,6.0363]
[1720405441275,100.0,131.18,131.06,6.0363]
[1720405441579,22.3095,131.16,131.0,18.0848]
[1720405441871,100.0,131.12,131.01,49.24]
[1720405442070,100.0,131.13,131.01,49.24]
[1720405442273,0.17,131.12,131.01,49.24]
[1720405442446,100.0,131.11,131.01,49.24]
[1720405442645,0.17,131.1,131.01,49.24]
[1720405442848,100.0,131.07,130.97,55.5724]
[1720405443277,100.17,131.06,130.97,49.24]
[1720405443445,100.0,131.02,130.93,6.374]
[1720405443651,100.0,131.04,130.93,6.374]
[1720405444051,22.3031,131.07,130.96,49.24]
[1720405444268,100.0,131.03,130.93,6.374]
[1720405444479,0.17,131.04,130.93,6.374]
[1720405444786,100.0,131.03,130.91,11.5664]
[1720405445080,100.0,131.03,130.9,55.19203366]
[1720405445081,0.17,131.06,130.9,55.19203366]
[1720405445261,0.17,131.06,130.94,49.24]
[1720405445585,100.0,131.04,130.94,49.24]
[1720405445770,100.17,131.06,130.94,49.24]
[1720405446078,260.1,131.11,130.95,17.9404]
[1720405446284,22.3031,131.13,130.95,17.9404]
[1720405446285,100.0,131.06,130.95,17.9404]
[1720405447094,100.0,131.06,130.96,20.0]
[1720405447256,0.17,131.05,130.95,6.374]
[1720405447460,100.0,131.07,130.94,49.24]
[1720405447683,0.17,131.06,130.94,49.24]
[1720405447863,100.0,131.05,130.94,49.24]
[1720405448483,100.0,131.04,130.94,49.24]
[1720405448864,0.17,131.06,130.94,49.24]
[1720405449070,100.0,131.04,130.94,49.24]
[1720405449280,0.17,131.06,130.94,49.24]
[1720405449588,100.0,131.04,130.94,49.24]
[1720405449755,0.17,131.03,130.94,49.24]
[1720405449957,100.0,131.02,130.91,6.0495]
[1720405450290,100.0,130.99,130.91,6.0495]
[1720405450675,100.0,130.99,130.91,3.5495]
[1720405450979,100.0,130.99,130.9,55.19203366]
[1720405451157,100.0,131.02,130.9,55.19203366]
[1720405451361,23.0752,131.04,130.9,55.19203366]
[1720405451662,23.0752,131.04,130.94,49.24]
[1720405451867,23.0752,131.04,130.94,72.35]
[1720405452065,23.0752,131.04,130.95,20.0]
[1720405452465,6.5853,131.04,130.95,20.0]
[1720405452660,100.0,131.05,130.95,20.0]
[1720405452863,121.8985,131.08,130.95,20.0]
[1720405453082,100.0,131.06,130.95,20.0]
[1720405453759,21.8985,131.08,130.95,20.0]
[1720405453760,100.0,131.04,130.95,20.0]
[1720405453963,100.0,131.04,130.94,49.24]
[1720405454164,100.0,131.06,130.94,49.24]
[1720405454596,0.17,131.07,130.94,49.24]
[1720405454771,100.0,131.06,130.94,49.24]
[1720405454971,0.17,131.05,130.94,49.24]
[1720405455176,100.0,131.04,130.94,49.24]
[1720405455481,100.0,131.0,130.9,49.24]
[1720405456583,100.0,130.96,130.85,27.9745]
[1720405456773,100.0,130.98,130.87,72.35]
[1720405457392,100.0,130.98,130.87,49.24]
[1720405457997,100.0,130.96,130.87,49.24]
[1720405458580,21.9935,130.99,130.85,4.8645]
[1720405458581,100.0,130.92,130.85,4.8645]
[1720405458783,100.0,130.91,130.85,4.8645]
[1720405458985,100.0,130.91,130.84,11.5664]
[1720405460079,100.0,130.89,130.83,50.1073104]
[1720405460281,100.0,130.91,130.83,50.1073104]
[1720405461296,100.0,130.92,130.83,50.1073104]
[1720405461707,100.0,130.91,130.83,50.1073104]
[1720405462210,100.0,130.91,130.84,20.0]
[1720405463195,100.0,131.03,130.9,121.59]
[1720405463401,100.0,131.05,130.95,49.24]
[1720405463589,100.0,131.09,130.96,20.0]
[1720405463781,100.0,131.09,130.96,43.11]
[1720405463986,100.0,131.07,130.96,43.11]
[1720405464594,100.0,131.05,130.96,20.0]
[1720405464783,100.0,131.07,130.96,20.0]
[1720405464979,100.0,131.09,130.96,43.11]
[1720405465185,21.8306,131.12,130.99,72.35]
[1720405465388,100.0,131.04,130.91,27.9745]
[1720405465593,21.8306,131.12,130.94,49.24]
[1720405465594,100.0,131.06,130.94,49.24]
[1720405466779,100.0,131.08,130.94,72.35]
[1720405466976,100.0,131.08,130.98,49.24]
[1720405467380,100.0,131.06,130.98,49.24]
[1720405467593,100.0,131.08,130.98,49.24]
[1720405467789,100.0,131.05,130.98,49.24]
[1720405467996,100.0,131.03,130.94,49.24]
[1720405468386,100.0,131.11,130.98,49.24]
[1720405468715,100.0,131.09,130.98,49.24]
[1720405468915,21.8306,131.12,130.98,49.24]
[1720405469127,100.0,131.07,130.98,49.24]
[1720405469339,100.0,131.08,130.99,20.0]
[1720405469804,100.0,131.03,130.94,49.24]
[1720405470738,100.0,131.05,130.94,49.24]
[1720405471621,100.0,131.05,130.95,20.0]
[1720405472531,28.04087485,131.12,130.95,20.0]
[1720405472532,100.0,131.03,130.95,20.0]
[1720405473303,100.0,131.05,130.95,20.0]
[1720405473524,100.0,131.03,130.95,20.0]
[1720405473911,100.0,131.05,130.95,20.0]
[1720405474117,100.0,131.03,130.95,20.0]
[1720405474717,100.0,131.03,130.94,49.24]
[1720405474718,100.0,131.0,130.94,49.24]
[1720405474927,43.04087485,131.12,130.92,11.5664]
[1720405474928,100.0,131.02,130.92,11.5664]
[1720405475132,6.6119,131.15,131.0,11.5664]
[1720405475338,100.0,131.13,131.04,49.24]
[1720405475719,100.0,131.13,131.0,11.5664]
[1720405476031,100.0,131.12,131.0,11.5664]
[1720405476232,100.0,131.12,131.01,20.0]
[1720405476551,6.6119,131.15,131.01,20.0]
[1720405476740,100.0,131.12,131.01,20.0]
[1720405477034,100.17,131.11,131.01,20.0]
[1720405477237,100.0,131.09,131.01,20.0]
[1720405478032,100.0,131.08,130.99,4.8645]
[1720405478433,100.0,131.06,130.97,49.24]
[1720405478940,100.0,131.09,130.97,49.24]
[1720405479129,0.17,131.08,130.97,49.24]
[1720405479621,100.0,131.09,130.97,49.24]
[1720405479826,100.0,131.09,130.98,20.0]
[1720405480333,100.0,131.07,130.98,20.0]
[1720405480641,0.17,131.1,130.98,20.0]
[1720405480642,100.0,131.09,130.98,20.0]
[1720405481042,100.0,131.09,131.01,49.24]
[1720405481731,100.0,131.07,131.01,49.24]
[1720405482048,100.0,131.07,130.98,20.0]
[1720405482239,100.0,131.05,130.98,20.0]
[1720405483027,100.0,131.05,130.97,49.24]
[1720405483229,100.0,131.03,130.97,49.24]
[1720405485324,100.0,131.05,130.97,49.24]
[1720405485519,100.0,131.03,130.97,49.24]
[1720405487730,100.0,131.0,130.92,4.8645]
[1720405488038,100.0,131.02,130.92,4.8645]
[1720405488231,100.0,131.04,130.94,49.24]
[1720405488631,100.0,131.07,130.94,49.24]
[1720405488831,100.0,131.07,130.95,0.17]
[1720405489138,100.0,131.07,130.95,20.17]
[1720405489333,100.0,131.06,130.95,20.0]
[1720405489541,100.0,131.04,130.95,20.0]
[1720405490149,100.0,131.06,130.95,20.0]
[1720405490531,100.0,131.06,130.97,40.14]
[1720405490741,100.0,131.06,130.98,20.0]
[1720405491153,28.13800981,131.11,130.98,20.0]
[1720405491154,100.0,131.04,130.98,20.0]
[1720405491450,100.0,131.06,130.98,20.0]
[1720405491751,0.17,131.07,130.98,20.0]
[1720405491940,100.17,131.07,130.98,20.0]
[1720405492729,100.17,131.07,130.97,40.14]
[1720405492730,0.17,131.07,130.97,40.14]
[1720405492940,100.0,131.01,130.92,11.26994606]
[1720405493153,100.0,131.01,130.93,40.14]
[1720405493351,100.0,131.03,130.93,40.14]
[1720405494255,100.0,131.06,130.94,20.0]
[1720405494557,0.17,131.05,130.94,20.0]
[1720405495134,100.0,131.06,130.94,20.0]
[1720405495332,100.0,131.01,130.94,20.0]
[1720405495548,0.17,131.05,130.94,20.0]
[1720405495549,100.17,131.05,130.94,20.0]
[1720405495755,100.0,131.03,130.94,20.0]
[1720405496144,0.17,131.05,130.94,20.0]
[1720405496145,100.17,131.05,130.94,20.0]
[1720405496454,16.4605,131.22,131.05,4.8645]
[1720405496641,100.0,131.17,131.08,40.14]
[1720405497045,100.0,131.17,131.09,20.0]
[1720405498047,100.0,131.17,131.08,40.14]
[1720405498357,100.0,131.17,131.05,4.8645]
[1720405498564,100.0,131.17,131.05,24.8645]
[1720405498737,100.0,131.17,131.06,45.0]
[1720405499056,100.0,131.15,131.06,45.0]
[1720405499260,100.0,131.1,131.06,45.0]
[1720405499568,100.0,131.1,131.03,40.14]
[1720405500450,100.0,131.1,131.0,4.8645]
[1720405500641,100.0,131.1,130.92,0.346287]
[1720405500642,100.0,131.08,130.96,4.8645]
[1720405500846,100.0,131.06,130.96,4.8645]
[1720405501043,0.17,131.07,130.96,4.8645]
[1720405501255,100.0,131.08,130.96,4.8645]
[1720405501462,0.17,131.07,130.96,4.8645]
[1720405501766,0.17,131.07,130.97,7.6353]
[1720405501940,100.0,131.06,130.96,4.8645]
[1720405502147,100.0,131.06,130.96,24.8645]
[1720405502793,100.0,131.06,130.96,4.8645]
[1720405502986,0.17,131.05,130.96,4.8645]
[1720405503755,100.0,131.01,130.92,11.38172737]
[1720405504161,100.0,131.01,130.92,5.210787]
[1720405504463,100.0,130.99,130.92,0.346287]
[1720405504667,100.17,130.98,130.92,0.346287]
[1720405504871,100.0,130.99,130.92,0.346287]
[1720405505368,0.17,130.98,130.92,0.346287]
[1720405506044,100.0,130.96,130.92,0.346287]
[1720405506443,0.17,130.95,130.92,0.346287]
[1720405506651,100.0,130.94,130.92,0.346287]
[1720405507265,100.0,130.98,130.92,0.346287]
[1720405507576,100.0,130.96,130.92,0.346287]
[1720405507875,0.17,130.95,130.92,0.346287]
[1720405508079,0.17,130.97,130.92,0.346287]
[1720405508651,100.0,130.94,130.92,0.346287]
[1720405508881,0.17,130.95,130.92,0.346287]
[1720405509257,22.06829494,131.01,130.92,0.346287]
[1720405509575,122.4726,131.16,130.92,0.346287]
[1720405509576,22.4726,131.16,131.05,7.6305]
[1720405509881,22.04151469,131.15,131.06,7.63]
[1720405510066,22.04151469,131.15,131.07,45.0]
[1720405510262,16.3026,131.16,131.07,45.0]
[1720405510466,100.0,131.15,131.06,45.0]
[1720405510770,100.0,131.09,130.99,4.8645]
[1720405510950,16.3026,131.16,130.99,24.8645]
[1720405511161,100.0,131.12,131.0,45.0]
[1720405511354,100.0,131.09,131.01,20.0]
[1720405511555,100.0,131.12,131.02,45.0]
[1720405511768,100.0,131.09,131.02,45.0]
[1720405512376,16.3026,131.16,131.02,45.0]
[1720405512377,100.0,131.11,131.02,45.0]
[1720405512579,100.0,131.09,131.02,45.0]
[1720405513656,100.0,131.07,130.97,49.06]
[1720405514156,100.0,131.04,130.97,49.06]
[1720405514357,0.17,131.08,130.97,49.06]
[1720405514358,100.0,131.06,130.97,49.06]
[1720405514580,100.0,131.04,130.97,49.06]
[1720405515674,100.0,131.05,130.95,4.8645]
[1720405515879,100.0,131.03,130.95,4.8645]
[1720405516077,100.0,131.03,130.92,0.346287]
[1720405516078,0.17,131.02,130.92,0.346287]
[1720405516861,100.17,131.02,130.92,0.346287]
[1720405517386,100.0,130.99,130.92,0.346287]
[1720405519368,100.0,130.99,130.93,49.06]
[1720405520379,100.0,131.04,130.94,20.0]
[1720405520582,100.0,131.02,130.94,20.0]
[1720405520781,100.0,131.05,130.94,20.0]
[1720405521175,100.0,131.08,130.99,7.6341]
[1720405521373,100.0,131.07,131.0,20.0]
[1720405521764,100.0,131.1,131.01,49.06]
[1720405521988,100.0,131.1,131.03,7.6318]
[1720405522189,100.0,131.1,131.04,20.0]
[1720405522377,100.0,131.1,131.05,49.06]
[1720405522561,100.0,131.14,131.05,49.06]
[1720405522765,100.0,131.14,131.06,7.6295]
[1720405522965,100.0,131.17,131.07,43.11]
[1720405523163,15.9875,131.21,131.1,49.06]
[1720405523366,360.6117177,131.25,131.14,49.06]
[1720405523367,0.5117177,131.25,131.14,49.06]
[1720405523582,22.54172146,131.25,131.15,20.0]
[1720405523785,0.5117177,131.25,131.15,20.0]
[1720405524793,100.5117177,131.25,131.15,20.0]
[1720405524994,100.5117177,131.25,131.18,49.06]
[1720405525164,0.5117177,131.25,131.19,20.0]
[1720405525359,0.5117177,131.25,131.22,49.06]
[1720405525985,0.5117177,131.25,131.19,20.0]
[1720405526989,100.0,131.34,131.2,5.0345]
[1720405527290,100.0,131.34,131.23,7.6201]
[1720405527490,100.0,131.34,131.24,20.0]
[1720405527866,100.0,131.34,131.24,27.6195]
[1720405528076,100.0,131.34,131.25,56.6789]
[1720405528268,100.0,131.34,131.26,20.0]
[1720405529290,100.0,131.36,131.26,20.0]
[1720405529669,100.0,131.36,131.26,27.6184]
[1720405529868,100.8580047,131.38,131.27,7.6176]
[1720405530080,100.8580047,131.38,131.29,49.06]
[1720405530675,0.8580047,131.38,131.2,18.53210816]
[1720405530903,100.0,131.33,131.24,49.06]
[1720405531199,0.8580047,131.38,131.2,4.8645]
[1720405531200,100.0,131.37,131.28,68.1026]
[1720405531387,0.8580047,131.38,131.28,68.1026]
[1720405531588,0.8580047,131.38,131.28,75.7196]
[1720405531780,0.8580047,131.38,131.28,49.06]
[1720405532185,0.8580047,131.38,131.29,20.0]
[1720405532574,0.8580047,131.38,131.26,20.0]
[1720405532889,0.8580047,131.38,131.31,49.06]
[1720405533189,0.8580047,131.38,131.32,20.0]
[1720405533991,0.8580047,131.38,131.32,27.6149]
[1720405534190,0.8580047,131.38,131.32,20.0]
[1720405534900,0.8580047,131.38,131.33,7.6142]
[1720405535093,0.8580047,131.38,131.34,20.0]
[1720405535402,0.8580047,131.38,131.31,53.9245]
[1720405536094,0.8580047,131.38,131.32,7.6147]
[1720405536298,0.8580047,131.38,131.31,53.9245]
[1720405536678,0.8580047,131.38,131.32,20.0]
[1720405537710,0.2,131.39,131.35,49.06]
[1720405537914,0.2,131.49,131.38,23.11]
[1720405538200,0.2,131.49,131.46,49.06]
[1720405538408,0.2,131.49,131.42,49.06]
[1720405538715,0.2,131.49,131.43,20.0]
[1720405538894,100.0,131.47,131.43,20.0]
[1720405539204,100.0,131.47,131.39,49.06]
[1720405539908,100.0,131.44,131.39,49.06]
[1720405540321,100.2,131.49,131.39,49.06]
[1720405540806,0.2,131.49,131.39,49.06]
[1720405541314,100.2,131.49,131.39,49.06]
[1720405541486,0.2,131.49,131.39,49.06]
[1720405541692,0.2,131.49,131.4,21.52103354]
[1720405542523,0.2,131.49,131.45,49.06]
[1720405542680,0.8580047,131.51,131.46,20.0]
[1720405542886,0.8580047,131.51,131.49,49.06]
[1720405543287,0.2,131.59,131.5,20.17]
[1720405543493,0.2,131.59,131.55,49.06]
[1720405543917,100.0,131.58,131.55,49.06]
[1720405544312,0.2,131.59,131.55,49.06]
[1720405544510,0.2,131.59,131.5,69.06]
[1720405544839,0.2,131.59,131.45,49.06]
[1720405545020,0.2,131.59,131.46,20.0]
[1720405545521,100.0,131.58,131.45,49.06]
[1720405545721,0.17,131.58,131.45,49.06]
[1720405545922,100.0,131.56,131.45,49.06]
[1720405546132,0.17,131.55,131.41,4.6646]
[1720405546442,0.17,131.58,131.41,4.6646]
[1720405546443,100.0,131.56,131.41,4.6646]
[1720405546618,100.0,131.53,131.41,4.6646]
[1720405546818,100.0,131.52,131.43,49.06]
[1720405547933,100.17,131.51,131.43,49.06]
[1720405548145,100.17,131.51,131.39,49.06]
[1720405548146,0.17,131.51,131.39,49.06]
[1720405548432,100.0,131.53,131.39,49.06]
[1720405549029,100.0,131.58,131.4,43.11]
[1720405549218,100.0,131.58,131.46,49.06]
[1720405549417,100.0,131.58,131.47,20.0]
[1720405549815,0.2,131.59,131.47,20.0]
[1720405550016,0.2,131.59,131.5,49.06]
[1720405551020,100.0,131.53,131.46,49.06]
[1720405551228,0.2,131.59,131.46,49.06]
[1720405551229,100.2,131.59,131.46,49.06]
[1720405551433,0.2,131.59,131.46,49.06]
[1720405551637,0.2,131.59,131.47,30.0]
[1720405552143,0.8580047,131.64,131.55,72.17]
[1720405552348,0.2,131.69,131.63,49.06]
[1720405552545,0.2,131.69,131.64,20.0]
[1720405552845,0.2,131.69,131.64,50.0]
[1720405553750,0.2,131.69,131.64,30.0]
[1720405554117,100.0,131.73,131.65,20.0]
[1720405554448,100.0,131.73,131.65,50.0]
[1720405555015,100.0,131.76,131.65,50.0]
[1720405555243,100.0,131.74,131.65,50.0]
[1720405555434,100.8580047,131.77,131.68,49.06]
[1720405555642,100.8580047,131.77,131.68,79.06]
[1720405555838,0.8580047,131.77,131.68,79.06]
[1720405556145,0.8580047,131.77,131.72,49.06]
[1720405556352,0.8580047,131.77,131.73,20.17]
[1720405556648,0.8580047,131.77,131.73,20.0]
[1720405556824,0.8580047,131.77,131.76,49.06]
[1720405557033,0.8580047,131.77,131.72,49.06]
[1720405557233,0.8580047,131.77,131.67,49.06]
[1720405557449,0.8580047,131.77,131.68,20.0]
[1720405559464,100.8580047,131.77,131.68,20.0]
[1720405560349,100.0,131.73,131.6,98.12]
[1720405560648,100.0,131.73,131.65,49.06]
[1720405561769,100.0,131.73,131.6,49.06]
[1720405561974,115.0,131.71,131.6,49.06]
[1720405562155,100.0,131.66,131.54,4.4647]
[1720405562548,100.0,131.66,131.57,49.06]
[1720405562764,0.17,131.65,131.53,49.06]
[1720405563277,100.0,131.66,131.53,49.06]
[1720405563449,100.0,131.61,131.53,49.06]
[1720405563644,22.0436,131.65,131.53,49.06]
[1720405563870,100.0,131.62,131.53,49.06]
[1720405564173,100.0,131.6,131.46,49.06]
[1720405564372,0.17,131.59,131.46,49.06]
[1720405564575,100.0,131.54,131.46,49.06]
[1720405564881,0.17,131.59,131.46,49.06]
[1720405564882,100.17,131.59,131.46,49.06]
[1720405565372,100.0,131.55,131.46,49.06]
[1720405566369,0.17,131.54,131.46,49.06]
[1720405566575,100.0,131.51,131.39,98.12]
[1720405566762,100.0,131.51,131.39,49.06]
[1720405567649,0.17,131.5,131.39,49.06]
[1720405568182,100.0,131.49,131.39,49.06]
[1720405568949,0.17,131.48,131.39,49.06]
[1720405569150,100.0,131.49,131.39,49.06]
[1720405569367,0.17,131.5,131.39,49.06]
[1720405569569,100.0,131.48,131.39,49.06]
[1720405570185,16.0416,131.53,131.43,49.06]
[1720405570368,106.1491,131.58,131.43,49.06]
[1720405570369,6.1491,131.58,131.43,49.06]
[1720405570676,6.1491,131.58,131.47,49.06]
[1720405571772,16.06,131.59,131.47,49.06]
[1720405571949,16.06,131.59,131.43,4.4647]
[1720405571950,100.0,131.54,131.44,49.06]
[1720405572151,116.06,131.59,131.45,20.0]
[1720405572549,100.0,131.54,131.45,20.0]
[1720405572754,15.0,131.58,131.44,49.06]
[1720405572953,100.0,131.54,131.44,49.06]
[1720405573365,100.0,131.51,131.44,49.06]
[1720405573565,100.0,131.54,131.44,49.06]
[1720405573785,0.17,131.53,131.44,49.06]
[1720405573959,100.0,131.49,131.39,49.06]
[1720405574485,100.0,131.53,131.39,49.06]
[1720405574663,0.17,131.52,131.39,49.06]
[1720405574865,15.17,131.58,131.39,49.06]
[1720405575180,100.0,131.56,131.43,49.06]
[1720405576177,116.06,131.59,131.47,49.06]